Cogmind - Beta 16 @@@ ROGUE MODE // 2025.11.13 @ 19:20:27 Player: f3-rnm Result: Destroyed by TB-XFE(R) with Subdweller Machine Gun Performance ------------- Evolutions (0) 0 Regions Visited (2) 400 Robots Destroyed (10) 50 Value Destroyed (352) 352 Prototype IDs (0) 0 Alien Tech Used (0) 0 Bonus (0) 0 TOTAL SCORE: 802 Bonus ------- None Cogmind --------- Core Integrity 0/250 Matter 135/300 Energy 100/100 System Corruption 0% Temperature Cool (0) Movement Rolling (115) Ox1 Location -10/Subcaves Parts ------- > --- POWER (1) -------- (None) > --- PROPULSION (2) --- Light Treads Compact Wheel > --- UTILITY (2) ------ Large Storage Unit > --- WEAPON (2) ------- Subdweller Machine Gun Subdweller Machine Gun > --- INVENTORY (15) --- Makeshift Power Source Subdweller Monowheel Heat Sink Improved Heat Sink Medium Storage Unit Large Matter Pod (150) Structural Scanner Light Armor Plating Light Armor Plating Assault Rifle Light Assault Rifle Subdweller Machine Gun Subdweller Machine Gun Subdweller Machine Gun Peak State ------------ > --- POWER ------------ Subdweller Power Source > --- PROPULSION ------- Light Treads Compact Wheel > --- UTILITY ---------- Large Storage Unit Light Armor Plating > --- WEAPON ----------- Subdweller Machine Gun Subdweller Machine Gun > --- INVENTORY -------- Makeshift Power Source Heat Sink Improved Heat Sink Medium Storage Unit Large Matter Pod Structural Scanner Light Armor Plating Light Armor Plating Assault Rifle Light Assault Rifle Subdweller Machine Gun Subdweller Machine Gun Subdweller Shrapnel Launcher [Rating: 12] Favorites ----------- Power Light Ion Engine Engine Light Ion Engine Power Core Light Nuclear Core Propulsion Light Treads Treads Light Treads Wheel Compact Wheel Utility Light Armor Plating Storage Large Storage Unit Protection Light Armor Plating Weapon Light Assault Rifle Ballistic Gun Light Assault Rifle Launcher Subdweller Shrapnel Launcher Build | -11 -10 -10 ------- Run | Yrd Mat Sub Slots Evolved . | . . . Power . | . . . Propulsion . | . . . Utility . | . . . Weapon . | . . . Parts Attached 21 | 5 7 9 Power 4 | . 3 1 Engine 3 | . 2 1 Core 1 | . 1 . Reactor . | . . . Propulsion 4 | 2 . 2 Treads 3 | 2 . 1 Leg . | . . . Wheel 1 | . . 1 Hover . | . . . Flight . | . . . Utility 5 | 1 4 . Device . | . . . Storage 3 | 1 2 . Processor . | . . . Hackware . | . . . Protection 2 | . 2 . Artifact . | . . . Weapon 8 | 2 . 6 Energy Gun . | . . . Energy Cannon . | . . . Ballistic Gun 7 | 2 . 5 Ballistic Cannon . | . . . Launcher 1 | . . 1 Special Weapon . | . . . Impact Weapon . | . . . Slashing Weapon . | . . . Piercing Weapon . | . . . Special Melee Weapon . | . . . Unidentified Prototypes . | . . . Parts Lost 9 | . 1 8 Power 4 | . 1 3 Propulsion 2 | . . 2 Utility 1 | . . 1 Weapon 2 | . . 2 Highest Loss Streak 5 | . 1 5 To Critical Strikes . | . . . Average Backups 9 | 1 8 10 Power . | . . . Propulsion 1 | . 1 1 Utility 5 | . 4 7 Weapon 1 | . 1 2 Tool/Special . | . . . Unused Backups 9 | . . 9 Power 1 | . . 1 Propulsion 1 | . . 1 Utility 6 | . . 6 Weapon 1 | . . 1 Tool/Special . | . . . Average Slot Usage (%) 95 | . 94 96 Engine 8 | . 10 6 Core 4 | . 4 5 Treads 24 | . 28 19 Wheel 3 | . . 8 Storage 14 | . 14 14 Protection 10 | . 8 13 Ballistic Gun 27 | . 28 26 Peak Build Rating 12 | 5 10 12 Average Rating 8 | 3 7 9 On Entrance 5 | . 5 10 Avg Prop Armor Cover (%) 10 | . . 10 Naked Turns . | . . . Heaviest Build 40 | 7 30 40 Greatest Support 40 | 40 40 40 Greatest Overweight (x) 2 | . . 2 Average Overweight (x) . | . . . Largest Inventory Capacity 15 | 8 15 15 Average Capacity 12 | 6 10 15 Most Carried 15 | 4 11 15 Average Carried 9 | 1 8 10 Final Capacity 15 | 8 15 15 Final Carried 14 | 4 11 14 Class Distribution -------------------- 90% | Mutant 9% | Scavenger-Mutant Dominant Class ---------------- Mutant | -10/Materials Mutant | -10/Subcaves Resources | -11 -10 -10 ----------- Run | Yrd Mat Sub Matter Collected 667 | 187 186 294 Remotely . | . . . Salvage Created 446 | . 326 120 Parts 28 | . 22 6 Haulers Intercepted 1 | . 1 . Recyclers Shooed 1 | . 1 . Parts Field Recycled . | . . . Retrieved Matter . | . . . Parts Self-Destructed . | . . . Prevented . | . . . Parts Restored . | . . . Kills | -11 -10 -10 ------- Run | Yrd Mat Sub Combat Hostiles Destroyed 9 | . 6 3 Guns 9 | . 6 3 Classes Destroyed 3 | . 2 1 Hauler 1 | . 1 . Grunt 6 | . 6 . Subdweller 3 | . . 3 Best Kill Streak 2 | . 2 2 Combat Bots Only 2 | . 2 2 Max Kills in Single Turn 1 | . 1 1 Gunslinging . | . . . Exploded . | . . . Melee . | . . . Uniques/NPCs Destroyed . | . . . Combat | -11 -10 -10 -------- Run | Yrd Mat Sub Hostile Shots Fired 82 | . 38 44 Missed 19 | . 5 14 Hits 63 | . 33 30 Projectile 63 | . 33 30 Damage Taken 1309 | . 398 911 Core 273 | . 56 217 Absorbed by Shields . | . . . Core Remaining (%) 100 | 100 . . Volleys Fired 74 | 1 34 39 Largest 2 | 2 2 2 Hottest 60 | 40 40 60 Shots Fired 132 | 2 68 62 Gun 125 | 2 68 55 Cannon . | . . . Launcher 7 | . . 7 Special . | . . . Kinetic 132 | 2 68 62 Thermal . | . . . Explosive . | . . . Electromagnetic . | . . . Robot Hit Streak 20 | . 8 20 Robot Miss Streak 2 | . 2 1 Penetration Max . | . . . Secondary Targets 3 | . 2 1 Max Gunslinging Chain 1 | . 1 1 Shots Hit Robots 76 | . 49 27 Core Hits 32 | . 23 9 Critical Kills . | . . . Critical Parts Destroyed . | . . . Critical Strikes . | . . . Melee Attacks . | . . . Impact . | . . . Slashing . | . . . Piercing . | . . . Sneak Attacks . | . . . Combat Hostiles . | . . . Follow-up Attacks . | . . . Damage Inflicted 894 | . 408 486 Guns 716 | . 408 308 Cannons . | . . . Explosions 178 | . . 178 Melee . | . . . Ramming . | . . . Kinetic 894 | . 408 486 Thermal . | . . . Explosive . | . . . Electromagnetic . | . . . Impact . | . . . Slashing . | . . . Piercing . | . . . Highest Corruption . | . . . Average Corruption . | . . . Corruption Purged . | . . . Corruption Blocked . | . . . Overload Shots . | . . . Overflow Damage 7 | . . 7 Projectiles . | . . . Explosions 7 | . . 7 Melee . | . . . Knockbacks . | . . . Impact . | . . . Kinetic . | . . . Secondary . | . . . Self-Inflicted Damage 161 | . . 161 Shots 3 | . . 3 Rammed . | . . . Targets Rammed . | . . . Kicked . | . . . Crushed . | . . . Highest Temperature 54 | . 54 . Average Temperature 18 | . 18 . Received Heat Transfer 279 | . 225 54 Siege Activations . | . . . Martial Activations . | . . . Shielding Activations . | . . . Robots Disrupted . | . . . Combat Hostiles . | . . . Robots Corrupted . | . . . Combat Hostiles . | . . . Parts Fried . | . . . Impact Corruptions . | . . . Robots Melted . | . . . Combat Hostiles . | . . . Parts Melted . | . . . Heat Transferred . | . . . Parts Sabotaged . | . . . Parts Stolen . | . . . Parts Stripped . | . . . Power Chain Reactions . | . . . Alert | -11 -10 -10 ------- Run | Yrd Mat Sub Maximum Alert Level . | . . . Low Security (%) 100 | 100 100 . Level 1 . | . . . Level 2 . | . . . Level 3 . | . . . Level 4 . | . . . Level 5 . | . . . High Security . | . . . Max Security . | . . . Peak Influence 60 | . 60 . Initial . | . . . Average 14 | . 16 . Influence Increases 161 | . 161 . Destroy 0b10 Robot/C 120 | . 120 . Destroy 0b10 Robot/NC 5 | . 5 . Destroy Leader 32 | . 32 . Successful Hack 4 | . 4 . Influence Decreases 161 | . 161 . Time Decay 151 | . 151 . Lost Part 10 | . 10 . Squads Dispatched 2 | . 2 . Investigation . | . . . Extermination . | . . . Reinforcement 2 | . 2 . Assault . | . . . Garrison . | . . . Intercept . | . . . Searches Triggered . | . . . Construction Impeded . | . . . Haulers Reinforced . | . . . Active Scanning Responses . | . . . Cargo Convoy Interrupts . | . . . Stealth | -11 -10 -10 --------- Run | Yrd Mat Sub Distress Signals . | . . . Communications Jammed . | . . . Distress Signals . | . . . Times Spotted 16 | . 10 6 Peak Tracking Total 4 | . 3 4 Tactical Retreats . | . . . Traps | -11 -10 -10 ------- Run | Yrd Mat Sub Traps Triggered 3 | . . 3 Indirectly . | . . . Trap Hack Attempts . | . . . Triggered . | . . . Disarmed . | . . . Reprogrammed . | . . . Reused . | . . . Traps Extracted . | . . . Installed . | . . . Triggered . | . . . Machines | -11 -10 -10 ---------- Run | Yrd Mat Sub Machines Disabled . | . . . Max in Single Turn . | . . . Machines Repaired . | . . . Machines Dismantled . | . . . Machines Sabotaged . | . . . Overloaded Fab Kills . | . . . Hacking | -11 -10 -10 --------- Run | Yrd Mat Sub Machines Accessed 2 | . 2 . Terminals 2 | . 2 . Fabricators . | . . . Repair Stations . | . . . Recycling Units . | . . . Scanalyzers . | . . . Garrison Access . | . . . Total Hacks 2 | . 2 . Successful 1 | . 1 . Failed 1 | . 1 . Catastrophic 1 | . 1 . Database Lockouts . | . . . Manual 1 | . 1 . Terminals 2 | . 2 . Fabricators . | . . . Repair Stations . | . . . Recycling Units . | . . . Scanalyzers . | . . . Garrison Access . | . . . Terminal Hacks 1 | . 1 . Locate Traps 1 | . 1 . Fabricator Hacks . | . . . Repair Station Hacks . | . . . Recycling Unit Hacks . | . . . Scanalyzer . | . . . Garrison Access Hacks . | . . . Unauthorized Hacks . | . . . Terminals . | . . . Fabricators . | . . . Repair Stations . | . . . Recycling Units . | . . . Scanalyzers . | . . . Garrison Access . | . . . Data Cores Recovered . | . . . Used . | . . . Hacking Detections 1 | . 1 . Full Trace Events . | . . . Feedback Events . | . . . Feedback Blocked . | . . . Robot Schematics Acquired . | . . . Robots Built . | . . . Authchips . | . . . Time . | . . . Total Robot Build Rating . | . . . Part Schematics Acquired . | . . . Parts Built . | . . . Authchips . | . . . Time . | . . . Total Part Build Rating . | . . . Part Studies Acquired . | . . . Parts Repaired . | . . . Time . | . . . Parts Recycled . | . . . Recycled Matter . | . . . Retrieved Matter . | . . . Retrieved Components . | . . . Parts Scanalyzed . | . . . Part Schematics Acquired . | . . . Parts Damaged . | . . . Bothacking | -11 -10 -10 ------------ Run | Yrd Mat Sub Used RIF Installer . | . . . Robots Hacked . | . . . Non-combat . | . . . Combat . | . . . Robot Hacks Applied . | . . . Relay Couplers Released . | . . . Fabnet Peak Effective % . | . . . Robots Rewired . | . . . Allies Hacked . | . . . Hacks Repelled . | . . . Allies | -11 -10 -10 -------- Run | Yrd Mat Sub Total Allies . | . . . Largest Group . | . . . Highest-Rated Group . | . . . Highest-Rated Ally . | . . . Total Orders . | . . . Ally Attacks . | . . . Total Damage . | . . . Kills . | . . . Allies Corrupted . | . . . Allies Melted . | . . . Intel | -11 -10 -10 ------- Run | Yrd Mat Sub Active Infowar (turns) . | . . . Robot Analysis Total . | . . . Derelict Logs Recovered 1 | . . 1 Drone Launches . | . . . Drone Recoveries . | . . . Exploration | -11 -10 -10 ------------- Run | Yrd Mat Sub Turns Passed 1110 | 72 553 485 Spaces Moved 525 | 38 225 262 Core 2 | 2 . . Treads 372 | 36 225 111 Legs . | . . . Wheels 151 | . . 151 Hover . | . . . Flight . | . . . Fastest Speed 50 | 50 160 115 Average Speed 149 | 154 160 139 Slowest Speed 160 | 160 160 160 Overloaded Moves . | . . . Propulsion Burnouts . | . . . Robots Hopped . | . . . Potential Cave-ins 6 | . . 6 Cave-ins Triggered . | . . . Exploration Rate (%) 25 | 5 54 18 Regions Visited 2 Branch Regions 1 Pre-discovered Areas 1 | . . 1 Known Exits Taken . | . . . Unknown Exits Taken 2 | 1 1 . Scrap Searched 4 | . . 4 Spaces Dug 30 | . . 30 Terrain Destroyed 147 | . . 147 Melee . | . . . Projectile 12 | . . 12 AOE 135 | . . 135 Terrain Rammed . | . . . Walls Destroyed . | . . . Machines Disabled . | . . . Actions | -11 -10 -10 --------- Run | Yrd Mat Sub Total 731 | 47 365 319 Wait 85 | . 85 . Move 523 | 37 224 262 Hop . | . . . Pick Up 22 | 4 10 8 Fast Attach 7 | 5 1 1 Attach 7 | . 2 5 Detach . | . . . Swap 8 | . 4 4 Drop 5 | . 5 . Fire 74 | 1 34 39 Melee . | . . . Ram . | . . . Kick . | . . . Crush . | . . . Escape Stasis . | . . . Rewire . | . . . Trap . | . . . Miscellaneous . | . . . Route ------- -11/Scrapyard -10/Materials (discovered 2 exits: [*Mat] / [*Sub]) -10/Subcaves History --------- Turn | Location | Event 15 | -11/Scrapyard | Discovered new exit (range 14) 73 | -11/Scrapyard | Entered Materials 240 | -10/Materials | Discovered new exit (range 16) 314 | -10/Materials | Build established: Mutant 589 | -10/Materials | Discovered new exit (range 6) 626 | -10/Materials | Entered Subcaves 627 | -10/Subcaves | Approached by a straggling Scientist 647 | -10/Subcaves | Learned location of Zion (-7) 831 | -10/Subcaves | Core integrity fell below 50% 859 | -10/Subcaves | Lost 5 parts (2p2n1w) 1087 | -10/Subcaves | Ambushed by Subdweller buried in earth 1087 | -10/Subcaves | Ambushed by Subdweller buried in earth 1092 | -10/Subcaves | Ambushed by Subdweller buried in earth 1094 | -10/Subcaves | Ambushed by Subdweller buried in earth 1095 | -10/Subcaves | Core integrity fell below 20% 1111 | -10/Subcaves | Destroyed by TB-XFE(R) with Subdweller Machine Gun Last Messages --------------- 01012_ Found Sub. Machine Gun. 01012_ Found 56 Matter. 01013_ Acquired 46 matter. 01014_ Acquired Sub. Machine Gun. 01023_ Acquired Sub. Monowheel. UX-H6T(c): "I think it's somewhere north of here" 01077_ Sub. Power Source destroyed. 01077_ Destroyed Sub. Power Source. UX-H6T(c): "I think it's somewhere northeast of here" [Achievement: Do Not Disturb] 01087_ Lgt. Armor Plating destroyed. 01088_ D0-Z0N(R): "SLEEPOVER!" 01088_ TM-QKE(R): "THANKSYOU!" 01093_ PQ-CKU(R): "HIDIE!" 01095_ TB-XFE(R): "ARGHSUB!" 01095_ Sub. Shrapnel Launcher destroyed. 01096_ The unstable cave ceiling collapses. 01107_ TM-QKE(R) destroyed. 01107_ Switching to secondary target: D0-Z0N(R). 01109_ D0-Z0N(R) affixes Scrap Shield Fragment to Scrap Shield. Map ----- +----------------------------------------------------+ | ?????????????????????????????????????????????????? | | ?????????????????????????????????????????????????? | | ?????????????????????????????????????????????????? | | ?????????????????????????????????????????????????? | | ?????????????????????????????????????????????????? | | ?????????????????????????????????????????????????? | | ?????????????????????????????????????????????????? | | ?????????????????????????????????????????????????? | | ?????????????????????????????????????????????????? | | ?????????????????????????????????????????????????? | | ?????????????????????????????????????????????????? | | ?????????????????????????????????????????????????? | | ?????????????????????????????????????????????????? | | ?????????????????????????????????????????????????? | | ?????????????????????????????????????????????????? | | ???????????????????????????????######????????????? | | ?????????????????????????????## #????????????? | | ???????????????????????????## #????#######?? | | ??????????????????????????##" #????# ##? | | ?????????????????????????##"" #????# ## | | ???????????????????????### " # #????# # | | ???????????????????????# # ##????# | | ????????????????????????# #????# | | ???????????????????????##R#"" "#######" | | ???????????????????????#RR##" # # | | ??????????????????????# #@###" # | | ??????????????????????#####??## ## " | | ??????????????????????????????## # "## # ### | | ?????????????????????????????????###"#### ### | | ????????????????????????????????????##??## # | | ????????????????????????????????????????# | | ????????????????????????????????????????### ### | | ??????????????????????????????????????????###?# | | ??????????????????????????????????????????????## | | ???????????????????????????????????????????????## | | ????????????????????????????????????????????????# | | ??????????????????????????????????????????####### | | ??????????????????????????????????????????# ## | | ??????????????????????????????????????????# &"##" | | ??????????????????????????????????????????## | | ??????????????????????????????????????????# # #" | | ??????????????????????????????????????????# %### | | ??????????????????????????????????????????##### | | ??????????????????????????????????????????????### | | ????????????????????????????????????????????????# | | ????????????????????????????????????????????????## | | ????????????????????????????????????????????????# | | ????????????????????????????????????????????????# | | ???????????????????????????????????????????????### | | ???????????????????????????????????????????????# | +----------------------------------------------------+ Best States ------------- Heat Dissipation 25 Energy Generation 15 Energy Capacity 200 Matter Stores 300 Matter Capacity 300 Sight Range 16 Terrain Scan Density 10 Armor Coverage 150 Evasion (%) 40 Recoil Reduction 2 Item Schematics ----------------- None Robot Schematics ------------------ None Fabricated ------------ Nothing Repaired ---------- Nothing Studied --------- None Alien Tech Used ----------------- None Achievements -------------- Do Not Disturb Challenges ------------ None Game ------ Seed SlugFrostVibroblade Manual? 0 Play Time 00:07:20 Cumulative 405.5 hours Start 2025.11.13 @ 19:15:30 End 2025.11.13 @ 19:20:27 Sessions 1 Manual Loads 0 Difficulty Rogue Special Mode None Game No. 364 Rogue 328 Adventurer 36 Explorer 0 Win Type - Total 16 Types 7/0/9/0/0/0/0/0/0/0 Lore% 71 Gallery% 84 Achievement% 59 Wizard Run 0 Options --------- Layout 0 ASCII 0 Keyboard 0 Movement Mouse Keybinds 0 Fullscreen 1 Font 18/SmallcapsGlow Map View 76x50 Zoom Use 0% Tactical HUD 1 Map Filters NONE Filters NONE Steam 1 RUN: 264cc684-7714-4b31-b426-189f36a95f3d